bitfinex/quotes_SOLUSD_20250701
["timestamp","ask_amount","ask_price","bid_price","bid_amount"]
[1751405027919,0.1,147.15,147.14,57.33719853]
[1751405028221,0.1,147.15,147.14,71.27875093]
[1751405028521,0.1,147.15,147.14,57.33719853]
[1751405033511,0.1,147.15,147.14,71.27875093]
[1751405036129,7.90422493,147.2,147.17,26.0]
[1751405036438,7.90422493,147.2,147.19,3.4853881]
[1751405036640,7.90422493,147.2,147.17,44.64964886]
[1751405036846,7.90422493,147.2,147.19,3.4853881]
[1751405037224,7.90422493,147.2,147.19,22.27719853]
[1751405041336,7.90422493,147.2,147.19,25.64818692]
[1751405046344,8.00422493,147.2,147.19,31.02972381]
[1751405048050,1.36080001,147.27,147.2,18.79181043]
[1751405048266,1.36080001,147.27,147.23,3.4853881]
[1751405048546,1.36080001,147.27,147.22,18.79181043]
[1751405049040,1.36080001,147.27,147.24,3.4853881]
[1751405049251,1.36080001,147.27,147.22,18.79181043]
[1751405049441,1.36080001,147.27,147.25,3.4853881]
[1751405049648,1.36080001,147.27,147.24,3.4853881]
[1751405052734,9.5315881,147.28,147.24,3.4853881]
[1751405053245,0.1,147.26,147.25,3.4853881]
[1751405053768,3.5853881,147.26,147.21,7.2]
[1751405053928,3.4853881,147.23,147.21,7.2]
[1751405054134,27.3608,147.25,147.21,7.2]
[1751405054350,3.4853881,147.23,147.21,7.2]
[1751405054829,3.4853881,147.24,147.21,7.2]
[1751405055444,27.3608,147.25,147.21,7.2]
[1751405055659,3.4853881,147.24,147.21,7.2]
[1751405056163,27.3608,147.25,147.21,7.2]
[1751405056367,27.3608,147.25,147.21,10.6853881]
[1751405056664,30.8461881,147.25,147.21,10.6853881]
[1751405057955,27.3608,147.25,147.21,10.6853881]
[1751405058151,3.4853881,147.23,147.19,3.37098839]
[1751405058336,3.4853881,147.23,147.18,3.4853881]
[1751405058947,27.3608,147.25,147.18,3.4853881]
[1751405059138,3.4853881,147.23,147.18,3.4853881]
[1751405059348,3.4853881,147.23,147.19,3.4853881]
[1751405059546,3.4853881,147.23,147.18,3.4853881]
[1751405059842,5.43609834,147.23,147.18,5.43609834]
[1751405061054,5.43609834,147.23,147.19,5.43609834]
[1751405061255,27.3608,147.25,147.19,5.43609834]
[1751405061449,5.43609834,147.23,147.18,3.40364683]
[1751405061652,5.43609834,147.23,147.19,5.43609834]
[1751405062252,27.3608,147.25,147.19,5.43609834]
[1751405062457,5.43609834,147.23,147.19,5.43609834]
[1751405062665,5.43609834,147.23,147.18,5.43609834]
[1751405063041,27.3608,147.25,147.19,5.43609834]
[1751405063263,5.43609834,147.23,147.19,5.43609834]
[1751405063662,5.43609834,147.23,147.17,0.14216157]
[1751405063866,5.43609834,147.23,147.19,5.43609834]
[1751405064161,5.43609834,147.23,147.18,3.32234056]
[1751405064363,5.43609834,147.23,147.19,5.43609834]
[1751405066247,5.43609834,147.23,147.18,5.63609834]
[1751405067042,5.43609834,147.23,147.19,5.43609834]
[1751405069676,5.43609834,147.24,147.19,5.43609834]
[1751405071473,5.43609834,147.24,147.18,3.52779102]
[1751405071675,5.43609834,147.24,147.19,5.43609834]
[1751405072271,5.43609834,147.23,147.18,3.52779102]
[1751405072475,5.43609834,147.23,147.18,8.96388936]
[1751405079081,5.43609834,147.22,147.18,8.96388936]
[1751405079755,5.43609834,147.23,147.18,8.96388936]
[1751405079955,5.43609834,147.23,147.19,5.43609834]
[1751405081481,27.3608,147.25,147.19,5.43609834]
[1751405081691,5.43609834,147.23,147.19,5.43609834]
[1751405081978,3.47885986,147.23,147.18,3.52779102]
[1751405082189,3.47885986,147.24,147.19,3.47885986]
[1751405083281,3.47885986,147.24,147.19,3.67885986]
[1751405085680,3.47885986,147.24,147.19,0.2]
[1751405085884,3.47885986,147.23,147.19,3.67885986]
[1751405086064,3.47885986,147.23,147.19,0.2]
[1751405086261,3.47885986,147.23,147.19,3.67885986]
[1751405087581,3.47885986,147.24,147.19,3.67885986]
[1751405088987,3.47885986,147.24,147.19,0.2]
[1751405089367,3.47885986,147.24,147.19,3.67885986]
[1751405091179,3.47885986,147.24,147.2,26.0]
[1751405091674,1.3608,147.25,147.19,3.67885986]
[1751405091876,3.47885986,147.24,147.19,3.67885986]
[1751405096186,3.47885986,147.23,147.19,0.2]
[1751405096397,3.47885986,147.23,147.19,3.67885986]
[1751405098178,3.47885986,147.21,147.19,0.2]
[1751405098689,6.35432337,147.24,147.19,0.2]
[1751405098690,3.47885986,147.2,147.19,0.2]
[1751405099077,6.5415,147.23,147.19,0.2]
[1751405099288,3.47885986,147.2,147.19,0.2]
[1751405100272,48.12850872,147.2,147.19,0.2]
[1751405100474,55.98579366,147.2,147.19,0.02931472]
[1751405100703,55.98579366,147.2,147.13,0.2]
[1751405100704,26.0,147.16,147.13,0.2]
[1751405100875,26.0,147.15,147.13,0.2]
[1751405101201,32.37309028,147.15,147.13,0.2]
[1751405101379,3.47885986,147.14,147.13,0.2]
[1751405101582,9.85195014,147.14,147.13,0.2]
[1751405101789,43.3942993,147.14,147.13,0.2]
[1751405102699,29.47885986,147.14,147.13,0.2]
[1751405102919,43.3942993,147.14,147.13,0.2]
[1751405103795,36.88982636,147.14,147.13,0.2]
[1751405103999,31.44491318,147.14,147.13,0.2]
[1751405104730,36.88982636,147.14,147.13,0.2]
[1751405107235,55.68163679,147.14,147.13,0.2]
[1751405107397,18.79181043,147.13,147.07,0.2]
[1751405107724,24.23672361,147.13,147.07,0.2]
[1751405107950,5.44491318,147.08,147.07,0.2]
[1751405108798,24.23672361,147.08,147.07,0.2]
[1751405109003,29.68163679,147.08,147.07,0.2]
[1751405110098,55.68163679,147.08,147.07,0.2]
[1751405115633,62.48065773,147.08,147.07,0.2]
[1751405117316,36.48065773,147.08,147.06,0.2]
[1751405117516,36.88982636,147.07,147.06,0.2]
[1751405118134,50.23672361,147.07,147.06,0.2]
[1751405118515,6.79756071,147.12,147.06,0.2]
[1751405118720,5.44491318,147.07,147.06,0.2]
[1751405119133,26.0,147.08,147.06,0.2]
[1751405119334,5.44491318,147.07,147.06,0.2]
[1751405121424,26.0,147.09,147.06,0.2]
[1751405121624,5.44491318,147.08,147.06,0.2]
[1751405122028,31.44491318,147.09,147.06,0.2]
[1751405122230,5.44491318,147.09,147.06,0.2]
[1751405125025,26.0,147.14,147.06,5.64491318]
[1751405125223,5.44491318,147.11,147.06,5.64491318]
[1751405126033,5.44491318,147.11,147.07,5.44491318]
[1751405126446,26.0,147.12,147.07,5.44491318]
[1751405126447,5.44491318,147.12,147.07,5.44491318]
[1751405128328,5.44491318,147.12,147.08,1.5864]
[1751405129160,5.44491318,147.11,147.08,1.5864]
[1751405141547,5.44491318,147.1,147.08,1.5864]
[1751405141868,5.44491318,147.09,147.06,0.2]
[1751405142077,5.44491318,147.08,147.06,0.2]
[1751405143157,5.44491318,147.07,147.06,0.2]
[1751405145454,26.0,147.09,147.06,0.2]
[1751405145658,5.44491318,147.07,147.06,0.2]
[1751405148474,5.44491318,147.08,147.06,0.2]
[1751405149674,26.0,147.09,147.06,0.2]
[1751405149875,5.44491318,147.07,147.06,0.2]
[1751405153566,5.44491318,147.08,147.06,0.2]
[1751405162491,5.44491318,147.07,147.06,0.2]
[1751405163786,5.44491318,147.08,147.06,0.2]
[1751405165789,3.48651439,147.08,147.06,0.2]
[1751405168187,0.1,147.09,147.06,0.2]
[1751405168395,0.1,147.09,147.07,3.48651439]
[1751405169088,0.1,147.09,147.08,3.48651439]
[1751405169897,0.1,147.09,147.08,5.4447888]
[1751405177016,0.1,147.09,147.08,13.2031888]
[1751405188202,0.1,147.09,147.08,7.7584]
[1751405188402,0.1,147.09,147.08,13.2031888]
[1751405189612,0.1,147.09,147.08,7.7584]
[1751405189789,0.1,147.09,147.08,3.48462225]
[1751405195518,0.1,147.09,147.06,0.2]
[1751405195817,0.1,147.09,147.06,3.68462225]
[1751405196006,0.1,147.09,147.07,3.48462225]
[1751405196207,0.1,147.09,147.06,0.2]
[1751405196403,0.1,147.09,147.07,3.48462225]
[1751405202439,0.1,147.09,147.06,3.68462225]
[1751405204141,3.48462225,147.08,147.06,0.2]
[1751405204311,3.48462225,147.07,147.06,0.2]
[1751405205412,29.48462225,147.07,147.06,0.2]
[1751405205833,50.24239068,147.07,147.06,0.2]
[1751405206015,55.69297093,147.07,147.06,0.2]
[1751405206213,50.24239068,147.07,147.06,0.03527232]
[1751405207409,57.04187391,147.07,147.06,0.03527232]
[1751405208431,62.49245416,147.07,147.06,0.03527232]
[1751405208930,62.49245416,147.07,147.01,0.2]
[1751405209138,5.45058025,147.02,147.01,0.2]
[1751405215337,18.79181043,147.04,147.01,0.2]
[1751405215551,5.45058025,147.02,147.01,0.2]
[1751405216746,18.79181043,147.04,147.01,0.2]
[1751405216920,5.45058025,147.03,147.01,0.2]
[1751405217948,18.79181043,147.04,147.01,0.2]
[1751405218115,5.45058025,147.03,147.01,0.2]
[1751405218316,18.64964886,147.05,147.01,0.2]
[1751405218538,24.10022911,147.05,147.01,5.65058025]
[1751405218741,18.64964886,147.05,147.01,5.65058025]
[1751405218920,24.10022911,147.05,147.01,5.65058025]
[1751405227751,22.13787864,147.05,147.01,3.68822978]
[1751405230449,22.13787864,147.05,147.01,0.2]
[1751405230755,3.48822978,147.04,147.01,0.2]
[1751405235628,3.48822978,147.03,147.01,0.2]
[1751405237567,3.48822978,147.02,147.01,0.2]
[1751405238062,29.48822978,147.02,147.01,0.2]
[1751405238449,48.28004021,147.02,147.01,0.2]
[1751405244054,76.10004021,147.02,147.01,0.2]
[1751405251555,82.44986452,147.02,147.01,0.2]
[1751405261886,78.96163474,147.02,147.01,0.2]
[1751405262063,54.62986452,147.02,147.01,0.2]
[1751405262263,48.28004021,147.02,147.01,0.2]
[1751405262573,48.13787864,147.02,147.01,0.2]
[1751405263177,26.0,147.02,147.01,0.2]
[1751405263685,3.48822978,147.04,147.01,0.2]
[1751405264290,29.48822978,147.04,147.01,0.2]
[1751405266709,26.0,147.04,147.01,1.7277]
[1751405266862,26.0,147.03,147.01,1.7277]
[1751405267572,3.63039135,147.05,147.01,5.21592978]
[1751405267573,29.48822978,147.05,147.01,5.21592978]
[1751405268267,26.0,147.04,147.01,5.21592978]
[1751405269689,26.0,147.04,147.01,1.7277]
[1751405269992,26.0,147.04,147.01,5.21592978]
[1751405271291,0.1,147.06,147.02,3.48822978]
[1751405271480,3.58822978,147.06,147.02,3.48822978]
[1751405279000,3.58822978,147.06,147.01,1.7277]
[1751405279192,3.48822978,147.03,147.01,1.7277]
[1751405279387,3.48822978,147.02,147.01,1.7277]
[1751405280807,48.28004021,147.02,147.01,0.2]
[1751405294295,55.08183588,147.02,147.01,0.2]
[1751405297311,48.28004021,147.02,147.01,0.2]
[1751405302621,48.28004021,147.02,147.01,0.04402543]
[1751405307728,55.08183588,147.02,147.01,0.04402543]
[1751405310532,48.28004021,147.02,147.01,0.04402543]
[1751405311027,44.79181043,147.02,147.01,0.04402543]
[1751405311207,48.28004021,147.02,147.01,0.04402543]
[1751405311604,44.79181043,147.02,147.01,0.04402543]
[1751405311803,76.06004021,147.02,147.01,0.04402543]
[1751405312013,48.28004021,147.02,147.01,0.04402543]
[1751405314032,26.0,147.02,147.01,0.04402543]
[1751405314216,3.48822978,147.04,147.01,0.04402543]
[1751405314533,3.48822978,147.04,147.01,6.24932543]
[1751405314824,26.0,147.03,147.01,6.24932543]
[1751405316426,29.48822978,147.05,147.02,1.6161]
[1751405318018,26.0,147.05,147.02,1.6161]
[1751405318813,29.48822978,147.05,147.02,1.6161]
[1751405319013,3.48822978,147.04,147.02,1.6161]
[1751405319221,3.48822978,147.03,147.02,1.6161]
[1751405320937,0.14216157,147.05,147.02,1.6161]
[1751405321126,3.48822978,147.05,147.02,1.6161]
[1751405322834,31.36822978,147.06,147.02,1.6161]
[1751405323343,0.1,147.06,147.03,3.48822978]
[1751405329625,0.1,147.06,147.02,5.10432978]
[1751405331141,0.1,147.06,147.02,1.6161]
[1751405331329,3.48822978,147.05,147.02,1.6161]
[1751405332331,0.1,147.06,147.02,1.6161]
[1751405332652,3.58822978,147.06,147.02,1.6161]
[1751405342358,3.58822978,147.06,147.02,5.10432978]
[1751405344040,0.1,147.06,147.02,1.6161]
[1751405344238,0.1,147.06,147.04,3.48822978]
[1751405344528,0.1,147.06,147.03,3.48822978]
[1751405351746,3.58822978,147.06,147.02,1.6161]
[1751405357159,3.48822978,147.04,147.02,1.6161]
[1751405357843,41.64048922,147.03,147.0,0.2]
[1751405358051,18.79181043,147.0,146.95,1.8324]
[1751405358242,3.48822978,146.97,146.95,0.2]
[1751405359740,5.45738889,146.97,146.95,0.2]
[1751405359941,24.24919932,146.97,146.95,0.2]
[1751405360338,31.053309,146.97,146.96,0.0242656]
[1751405361574,37.40313331,146.97,146.96,0.0242656]
[1751405362237,31.053309,146.97,146.96,0.0242656]
[1751405367747,24.24919932,146.97,146.96,0.0242656]
[1751405369069,31.053309,146.97,146.96,0.0242656]
[1751405369262,18.79181043,146.97,146.96,0.0242656]
[1751405369577,24.24919932,146.97,146.96,0.0242656]
[1751405370694,52.00919932,146.97,146.96,0.0242656]
[1751405371870,31.45738889,146.97,146.96,0.0242656]
[1751405372662,26.0,146.97,146.96,0.0242656]
[1751405372870,31.45738889,146.97,146.96,0.0242656]
[1751405382693,26.0,147.01,146.96,1.6283656]
[1751405382990,5.45738889,146.99,146.96,1.6283656]
[1751405383669,5.45738889,146.98,146.96,1.6283656]
[1751405383864,0.14216157,147.0,146.96,1.6283656]
[1751405384070,5.45738889,146.99,146.96,1.6283656]
[1751405384275,5.45738889,146.98,146.96,1.6283656]
[1751405387198,0.14216157,147.0,146.96,1.6283656]
[1751405387375,5.45738889,146.98,146.96,1.6283656]
[1751405389986,5.45738889,146.98,146.96,0.0242656]
[1751405395897,3.49143475,146.98,146.96,0.0242656]
[1751405396905,3.59143475,146.98,146.96,0.0242656]
[1751405399102,0.1,146.98,146.96,0.0242656]
[1751405399301,3.59143475,146.98,146.96,0.0242656]
[1751405400726,0.1,146.98,146.96,0.0242656]
[1751405400907,3.59143475,146.98,146.96,0.0242656]
[1751405405510,3.49143475,146.97,146.96,0.0242656]
[1751405407512,3.59143475,146.98,146.96,0.0242656]
[1751405408092,3.49143475,146.97,146.96,0.0242656]
[1751405409018,3.49143475,146.97,146.96,0.0032812]
[1751405415111,3.63359632,146.97,146.96,0.0032812]
[1751405415318,26.0,146.96,146.95,0.2]
[1751405415494,29.49143475,146.96,146.95,0.2]
[1751405416101,26.0,146.96,146.95,0.2]
[1751405416310,29.49143475,146.96,146.95,0.2]
[1751405418914,29.49143475,146.96,146.94,0.0567624]
[1751405419117,3.49143475,146.95,146.94,0.0567624]
[1751405428926,3.49143475,146.95,146.94,0.00798698]
[1751405432835,26.0,146.96,146.94,0.00798698]
[1751405433038,3.49143475,146.95,146.94,0.00798698]
[1751405434632,29.49143475,146.95,146.94,0.00798698]
[1751405438941,29.49143475,146.95,146.93,0.2]
[1751405439125,3.49143475,146.94,146.93,0.2]
[1751405442240,29.49143475,146.94,146.93,0.2]
[1751405450745,29.49143475,146.94,146.93,0.02951311]
[1751405451549,0.1,146.95,146.93,0.02951311]
[1751405459545,0.1,146.95,146.93,3.52094786]
[1751405461453,0.1,146.95,146.93,0.02951311]
[1751405461761,0.1,146.95,146.93,3.52094786]
[1751405462453,0.1,146.95,146.93,0.02951311]
[1751405471760,0.1,146.95,146.93,3.52094786]
[1751405476076,0.1,146.95,146.93,0.02951311]
[1751405476269,3.49143475,146.94,146.93,0.02951311]
[1751405477980,0.1,146.95,146.93,3.52094786]
[1751405478175,0.1,146.95,146.94,5.10303475]
[1751405478689,0.1,146.98,146.97,3.77575789]
[1751405481778,0.1,146.98,146.97,5.73500415]
[1751405483165,0.1,146.98,146.97,11.78020415]
[1751405493663,0.1,146.98,146.97,11.49588101]
[1751405493860,0.1,146.98,146.97,5.45068101]
[1751405494068,0.1,146.98,146.94,1.6116]
[1751405494273,0.1,146.98,146.95,5.45068101]
[1751405494471,0.1,146.98,146.94,1.6116]
[1751405494696,0.1,146.98,146.95,5.45068101]
[1751405495779,0.1,146.98,146.94,7.06228101]
[1751405495978,5.55068101,146.98,146.93,5.48019412]
[1751405496183,5.55068101,146.98,146.93,0.02951311]
[1751405496487,5.55068101,146.98,146.93,5.48019412]
[1751405496686,5.55068101,146.98,146.93,0.02951311]
[1751405496887,5.55068101,146.98,146.93,5.48019412]
[1751405497188,5.45068101,146.97,146.93,5.48019412]
[1751405498328,5.45068101,146.97,146.93,0.02951311]
[1751405500698,5.45068101,146.97,146.93,5.48019412]
[1751405502195,0.1,146.98,146.93,5.48019412]
[1751405502401,5.55068101,146.98,146.93,5.48019412]
[1751405502601,5.45068101,146.97,146.93,0.02951311]
[1751405502787,31.45068101,146.96,146.93,0.02951311]
[1751405505780,3.49226868,146.96,146.93,0.02951311]
[1751405506101,3.49226868,146.95,146.93,0.02951311]
[1751405507299,3.49226868,146.94,146.93,0.02951311]
[1751405509785,5.458542,146.94,146.93,0.02951311]
[1751405514616,36.51439327,146.94,146.93,0.02951311]
[1751405516128,64.23439327,146.94,146.93,0.02951311]
[1751405526120,46.51181043,146.94,146.93,0.02951311]
[1751405526330,51.97035243,146.94,146.93,0.02951311]
[1751405529818,50.00675111,146.94,146.93,0.02951311]
[1751405536129,3.49494068,146.94,146.93,0.02951311]
[1751405536315,57.21494068,146.94,146.93,0.02951311]
[1751405536630,31.21494068,146.94,146.93,0.02951311]
[1751405537019,57.21494068,146.94,146.93,0.02951311]
[1751405537821,29.49494068,146.94,146.93,0.02951311]
[1751405538025,57.21494068,146.94,146.93,0.02951311]
[1751405538833,53.72,146.94,146.93,0.02951311]
[1751405539030,57.21494068,146.94,146.93,0.02951311]
[1751405541813,29.49494068,146.94,146.93,0.02951311]
[1751405542410,26.0,146.94,146.93,0.02951311]
[1751405542610,31.21494068,146.96,146.93,0.02951311]
[1751405542815,57.21494068,146.96,146.93,0.02951311]
[1751405543041,26.0,146.96,146.94,1.5545]
[1751405545119,31.45619199,146.96,146.94,1.5545]
[1751405545321,5.45619199,146.95,146.94,1.5545]
[1751405546439,31.45619199,146.96,146.94,1.5545]
[1751405548644,31.45619199,146.96,146.94,1.3545]
[1751405553940,26.0,146.96,146.94,1.3545]
[1751405554950,31.45619199,146.96,146.93,0.02951311]
[1751405555151,5.45619199,146.94,146.93,0.02951311]
[1751405555331,5.45619199,146.95,146.93,0.02951311]
[1751405558030,26.0,146.96,146.93,0.02951311]
[1751405558239,31.45619199,146.96,146.93,0.02951311]
[1751405561957,26.0,146.96,146.93,0.02951311]
[1751405562151,31.45619199,146.96,146.93,0.02951311]
[1751405563855,29.49215126,146.96,146.93,0.02951311]
[1751405569276,26.0,146.96,146.93,0.02951311]
[1751405569578,29.49215126,146.96,146.93,0.02951311]
[1751405576184,26.0,146.96,146.93,0.02951311]
[1751405576368,29.49215126,146.96,146.93,0.02951311]
[1751405580188,26.0,146.96,146.93,0.02951311]
[1751405580767,3.59215126,146.98,146.93,3.52166437]
[1751405580965,26.0,146.97,146.93,3.52166437]
[1751405581409,26.0,146.97,146.94,1.5983]
[1751405589808,26.0,146.97,146.94,5.09045126]
[1751405590930,26.0,146.97,146.94,1.5983]
[1751405597618,26.0,146.97,146.94,5.09045126]
[1751405601822,26.0,146.97,146.94,1.5983]
[1751405603731,29.49215126,146.97,146.94,1.5983]
[1751405604307,26.0,146.97,146.94,1.5983]
[1751405606521,0.1,146.98,146.94,1.5983]
[1751405606734,26.1,146.98,146.94,5.09045126]
[1751405608123,0.1,146.98,146.95,9.68455126]
[1751405609212,0.1,146.98,146.95,6.1924]
[1751405609413,0.1,146.98,146.95,9.68455126]
[1751405612542,0.1,146.98,146.95,6.1924]
[1751405612714,0.1,146.98,146.95,9.68455126]
[1751405616436,0.1,146.98,146.93,0.02951311]
[1751405616622,26.0,146.94,146.93,0.00461122]
[1751405616823,29.49215126,146.94,146.93,0.00461122]
[1751405618411,29.49215126,146.94,146.9,0.2]
[1751405618717,3.49215126,146.91,146.9,0.2]
[1751405620724,3.49215126,146.92,146.9,0.2]
[1751405621939,3.49215126,146.91,146.9,0.2]
[1751405627440,3.49215126,146.92,146.9,0.2]
[1751405628141,26.0,146.94,146.9,0.2]
[1751405628443,3.49215126,146.92,146.9,0.2]
[1751405632446,3.49215126,146.93,146.9,0.2]
[1751405643042,26.0,146.94,146.9,3.69215126]
[1751405643232,25.2566917,146.98,146.92,3.49215126]
[1751405643433,18.89181043,146.98,146.9,1.7455]
[1751405643633,3.49215126,146.96,146.92,3.49215126]
[1751405644469,26.0,146.97,146.92,3.49215126]
[1751405644769,3.49215126,146.96,146.92,3.49215126]
[1751405646538,3.49215126,146.96,146.9,1.7455]
[1751405646740,3.49215126,146.95,146.91,3.49215126]
[1751405653135,26.0,146.97,146.91,3.49215126]
[1751405653336,3.49215126,146.95,146.91,3.49215126]
[1751405653557,3.49215126,146.96,146.92,3.49215126]
[1751405653750,3.49215126,146.96,146.9,1.7455]
[1751405653941,26.0,146.97,146.91,6.0067]
[1751405654147,26.0,146.97,146.93,3.49215126]
[1751405654449,29.49215126,146.97,146.93,3.49215126]
[1751405656164,29.49215126,146.97,146.92,3.49215126]
[1751405657666,26.0,146.97,146.92,3.49215126]
[1751405657959,29.49215126,146.97,146.91,6.0067]
[1751405658166,3.49215126,146.95,146.91,6.0067]
[1751405658357,3.49215126,146.95,146.91,9.49885126]
[1751405658865,26.0,146.96,146.91,9.49885126]
[1751405659068,3.49215126,146.95,146.91,9.49885126]
[1751405659559,29.49215126,146.95,146.91,6.0067]
[1751405660876,3.49215126,146.94,146.91,6.0067]
[1751405661568,3.49215126,146.93,146.9,1.7455]
[1751405663268,3.49215126,146.92,146.9,1.7455]
[1751405663560,29.49215126,146.92,146.9,1.7455]
[1751405664348,3.49215126,146.91,146.9,1.7455]
[1751405665267,3.49215126,146.91,146.9,0.2]
[1751405668287,29.49215126,146.92,146.9,0.2]
[1751405669381,3.49215126,146.91,146.9,0.2]
[1751405672886,26.0,146.92,146.9,0.2]
[1751405673058,29.49215126,146.92,146.9,0.2]
[1751405678404,26.0,146.92,146.9,0.2]
[1751405678580,29.49215126,146.92,146.9,0.2]
[1751405681393,26.0,146.94,146.9,0.2]
[1751405681591,3.49215126,146.92,146.9,0.2]
[1751405684089,26.0,146.94,146.9,0.2]
[1751405684291,3.49215126,146.92,146.9,0.2]
[1751405689293,26.0,146.94,146.9,0.2]
[1751405689793,3.49215126,146.92,146.9,0.2]
[1751405694204,3.49215126,146.92,146.9,0.02105769]
[1751405699204,2.49215126,146.92,146.9,0.02105769]
[1751405699702,3.49215126,146.91,146.9,0.02105769]
[1751405704304,3.49215126,146.91,146.89,0.02775517]
[1751405709614,6.3757193,146.93,146.89,0.02775517]
[1751405709806,3.49215126,146.91,146.89,0.02775517]
[1751405710625,6.3757193,146.93,146.89,0.02775517]
[1751405710804,3.49215126,146.92,146.89,0.02775517]
[1751405710994,3.49215126,146.91,146.89,0.02775517]
[1751405712419,3.49215126,146.92,146.89,0.02775517]
[1751405712718,6.3757193,146.93,146.89,0.02775517]
[1751405712918,35.86787056,146.94,146.89,0.02775517]
[1751405713296,26.0,146.94,146.89,0.02775517]
[1751405713513,26.0,146.94,146.9,1.5266]
[1751405714218,3.49215126,146.95,146.9,5.01875126]
[1751405714418,3.49215126,146.95,146.91,6.4531]
[1751405718828,32.3757193,146.97,146.91,6.4531]
[1751405719028,3.49215126,146.95,146.91,6.4531]
[1751405720919,3.49215126,146.94,146.91,6.4531]
[1751405725725,32.3757193,146.97,146.91,6.4531]
[1751405725925,3.49215126,146.94,146.91,6.4531]
[1751405727429,3.49215126,146.97,146.92,3.49215126]
[1751405727625,3.49215126,146.97,146.93,3.49215126]
[1751405732319,26.1,146.98,146.93,3.49215126]
[1751405732529,3.49215126,146.97,146.93,3.49215126]
[1751405734114,3.49215126,146.97,146.92,3.49215126]
[1751405734433,3.49215126,146.97,146.91,6.4531]
[1751405734618,3.49215126,146.97,146.92,3.49215126]
[1751405735309,26.1,146.98,146.91,6.4531]
[1751405735635,3.49215126,146.96,146.91,6.4531]
[1751405735806,3.49215126,146.96,146.92,3.49215126]
[1751405736835,3.49215126,146.97,146.92,3.49215126]
[1751405738344,3.49215126,146.97,146.93,3.49215126]
[1751405745849,3.49215126,146.97,146.92,3.49215126]
[1751405749111,3.49215126,146.96,146.92,3.49215126]
[1751405750521,3.49215126,146.96,146.91,9.94525126]
[1751405754145,3.49215126,146.95,146.91,6.4531]
[1751405758047,3.49215126,146.94,146.91,6.4531]
[1751405760047,3.49215126,146.95,146.91,6.4531]
[1751405771751,32.4757193,146.98,146.91,6.4531]
[1751405772056,3.49215126,146.95,146.91,6.4531]
[1751405773356,3.49215126,146.96,146.91,6.4531]
[1751405775469,32.4757193,146.98,146.91,6.4531]
[1751405775659,3.49215126,146.96,146.91,6.4531]
[1751405791571,32.4757193,146.98,146.92,1.63]
[1751405791863,3.49215126,146.96,146.92,1.63]
[1751405803882,35.96787056,146.98,146.93,6.2496]
[1751405804181,3.49215126,146.97,146.93,6.2496]
[1751405804975,32.4757193,146.98,146.93,6.2496]
[1751405805168,3.49215126,146.97,146.93,6.2496]
[1751405805678,3.49215126,146.97,146.93,9.74175126]
[1751405808384,3.49215126,146.97,146.93,6.2496]
[1751405810575,3.49215126,146.96,146.93,6.2496]
[1751405811192,3.49215126,146.95,146.93,6.2496]
[1751405815285,3.49215126,146.94,146.89,13.17445517]
[1751405815490,3.49215126,146.92,146.89,13.17445517]
[1751405816067,3.49215126,146.91,146.89,13.17445517]
[1751405818794,3.49215126,146.9,146.89,13.17445517]
[1751405819998,26.0,146.94,146.89,13.17445517]
[1751405820600,3.49215126,146.93,146.89,13.17445517]
[1751405825502,29.49215126,146.94,146.89,13.17445517]
[1751405827283,3.49215126,146.94,146.89,13.17445517]
[1751405827489,6.48810185,146.97,146.89,16.66660643]
[1751405827490,3.49215126,146.95,146.89,16.66660643]
[1751405828085,26.1,146.97,146.89,16.66660643]
[1751405828289,3.49215126,146.95,146.89,16.66660643]
[1751405830000,3.49215126,146.95,146.9,3.49215126]
[1751405830917,3.49215126,146.95,146.89,13.17445517]
[1751405831202,3.49215126,146.95,146.9,3.49215126]
[1751405831407,3.49215126,146.96,146.9,3.49215126]
[1751405831590,3.49215126,146.95,146.9,3.49215126]
[1751405833003,3.49215126,146.95,146.89,13.17445517]
[1751405833212,3.49215126,146.95,146.9,3.49215126]
[1751405833510,3.49215126,146.96,146.9,3.49215126]
[1751405834710,3.49215126,146.95,146.9,3.49215126]
[1751405838505,3.59215126,146.95,146.89,13.17445517]